fUST/lending_fUST_20250520
["ID","MTS","AMOUNT","RATE_DAILY","PERIOD"]
[361736783,1747738264945,-870.35000548,0.00020521,2]
[361736784,1747738264955,-1120.79962187,0.00020521,2]
[361736785,1747738264964,-1000.0,0.00020521,2]
[361736786,1747738264973,-1000.0,0.00020521,2]
[361736787,1747738264982,-1000.0,0.00020521,2]
[361736788,1747738264990,-1000.0,0.00020521,2]
[361736789,1747738265000,-1000.0,0.00020521,2]
[361736790,1747738265009,-1000.0,0.00020521,2]
[361736791,1747738265020,-239.20266778,0.00020521,2]
[361736792,1747738265028,-1000.0,0.00020521,2]
[361736793,1747738265037,-1000.0,0.00020521,2]
[361736794,1747738265046,-1000.0,0.00020521,2]
[361736795,1747738265055,-500.58630945,0.00020521,2]
[361736796,1747738265066,-1000.0,0.00020521,2]
[361736797,1747738265077,-524.83422906,0.00020521,2]
[361736798,1747738265086,-500.97016127,0.00020521,2]
[361736799,1747738265096,-1000.0,0.00020521,2]
[361736800,1747738265106,-1000.0,0.00020521,2]
[361736801,1747738265115,-1200.0,0.00020521,2]
[361736802,1747738265125,-412.60081372,0.00020547,2]
[361736803,1747738265134,-331.98634219,0.00020547,2]
[361736804,1747738265143,-430.0,0.00020547,2]
[361736805,1747738265151,-430.0,0.00020547,2]
[361736806,1747738265159,-430.0,0.00020547,2]
[361736807,1747738265167,-1776.74,0.00020547,2]
[361736808,1747738265176,-3412.88,0.00020547,2]
[361736809,1747738265184,-520.16,0.00020547,2]
[361736810,1747738265194,-1930.13,0.00020547,2]
[361736811,1747738265203,-1061.63,0.00020547,2]
[361736812,1747738265213,-603.79,0.00020547,2]
[361736813,1747738265222,-506.36,0.00020547,2]
[361736814,1747738265231,-1753.15,0.00020547,2]
[361736815,1747738265241,-1305.03,0.00020547,2]
[361736816,1747738265250,-430.0,0.00020547,2]
[361736817,1747738265259,-691.23,0.00020547,2]
[361736818,1747738265269,-1148.42,0.00020547,2]
[361736819,1747738265278,-572.24,0.00020547,2]
[361736820,1747738265286,-2306.53,0.00020547,2]
[361736821,1747738265295,-430.0,0.00020547,2]
[361736822,1747738265304,-582.21,0.00020547,2]
[361736823,1747738265314,-430.0,0.00020547,2]
[361736824,1747738265323,-430.0,0.00020547,2]
[361736825,1747738265332,-869.16,0.00020547,2]
[361736826,1747738265341,-1275.53,0.00020547,2]
[361736827,1747738265467,-596.79,0.00020547,2]
[361736828,1747738265478,-430.0,0.00020547,2]
[361736829,1747738265487,-958.75,0.00020547,2]
[361736830,1747738265498,-1444.05,0.00020547,2]
[361736831,1747738265509,-407.72665889,0.00020547,2]
[361736832,1747738265519,-102.35210329,0.00020547,2]
[361736833,1747738265659,-709.81789671,0.00020547,2]
[361736834,1747738265670,-573.94,0.00020547,2]
[361736835,1747738265679,-404.60073921,0.00020547,2]
[361736836,1747738265756,-430.0,0.00016438,2]
[361736837,1747738265766,-430.0,0.00016438,2]
[361736838,1747738265776,-430.0,0.00016712,2]
[361736839,1747738265785,-178.7719375,0.00016712,2]
[361736840,1747738266450,-154.7466949,0.00016712,2]
[361736841,1747738266461,-136.90917548,0.00016712,2]
[361736842,1747738359615,-196.47763723,0.00015625,2]
[361736843,1747738361066,-368.40913675,0.00015625,2]
[361736844,1747738396363,314.97,0.00027397,120]
[361736845,1747738404302,178.476334,0.00027397,120]
[361736846,1747738803085,4041.0,0.000122,2]
[361736851,1747738977462,5016.5,0.00027397,120]
[361736852,1747738984309,-154.34277442,0.00013699,2]
[361736853,1747739006719,156.56180132,0.00025009,120]
[361736854,1747739058084,-4568.0,0.00013562,2]
[361736919,1747739432248,-36.66200258,0.00013699,2]
[361736920,1747739432258,-601.1478918,0.00014859,2]
[361736922,1747739432274,-2350.1905755,0.00015445,2]
[361736923,1747739432290,-6857.02078082,0.00015625,2]
[361736924,1747739432301,-300.0,0.00015727,2]
[361736925,1747739432311,-345.40813744,0.00015728,2]
[361736926,1747739432321,-172.21137588,0.00015729,2]
[361736927,1747739432330,-434.76380619,0.00015828,2]
[361736928,1747739432340,-500.0,0.00015828,2]
[361736929,1747739432350,-500.0,0.00015828,2]
[361736930,1747739432359,-500.0,0.00015828,2]
[361736931,1747739432369,-500.0,0.00015828,2]
[361736932,1747739432379,-500.0,0.00015828,2]
[361736933,1747739432388,-500.0,0.00015828,2]
[361736934,1747739432398,-500.0,0.00015828,2]
[361736935,1747739432409,-500.0,0.00015828,2]
[361736936,1747739432418,-489.74597494,0.00015828,2]
[361736937,1747739432427,-500.0,0.00015828,2]
[361736938,1747739432436,-500.0,0.00015828,2]
[361736939,1747739432447,-500.0,0.00015828,2]
[361736940,1747739432456,-500.0,0.00015828,2]
[361736941,1747739432465,-500.0,0.00015828,2]
[361736942,1747739432474,-500.0,0.00015828,2]
[361736943,1747739432484,-500.0,0.00015828,2]
[361736944,1747739432493,-500.0,0.00015828,2]
[361736945,1747739432502,-500.0,0.00015828,2]
[361736946,1747739432512,-500.0,0.00015828,2]
[361736947,1747739432522,-500.0,0.00015828,2]
[361736948,1747739432531,-500.0,0.00015828,2]
[361736949,1747739432541,-500.0,0.00015828,2]
[361736950,1747739432550,-500.0,0.00015828,2]
[361736951,1747739432560,-500.0,0.00015828,2]
[361736952,1747739432571,-410.26346057,0.00015828,2]
[361736953,1747739432583,-500.0,0.00015828,2]
[361736954,1747739432593,-500.0,0.00015828,2]
[361736955,1747739432604,-500.0,0.00015828,2]
[361736956,1747739432615,-500.0,0.00015828,2]
[361736957,1747739432625,-484.34724549,0.00015828,2]
[361736958,1747739432635,-500.0,0.00015828,2]
[361736959,1747739432644,-500.0,0.00015828,2]
[361736960,1747739432655,-253.25680738,0.00015828,2]
[361736961,1747739432664,-500.0,0.00015828,2]
[361736962,1747739432674,-500.0,0.00015828,2]
[361736963,1747739432683,-500.0,0.00015828,2]
[361736964,1747739432694,-500.0,0.00015828,2]
[361736965,1747739432703,-500.0,0.00015828,2]
[361736966,1747739432713,-597.63559559,0.00015828,2]
[361736967,1747739432723,-500.0,0.00015828,2]
[361736968,1747739432733,-500.0,0.00015828,2]
[361736969,1747739432743,-500.0,0.00015828,2]
[361736970,1747739432753,-500.0,0.00015828,2]
[361736971,1747739432762,-500.0,0.00015828,2]
[361736972,1747739432772,-500.0,0.00015828,2]
[361736973,1747739432782,-500.0,0.00015828,2]
[361736974,1747739432791,-500.0,0.00015828,2]
[361736975,1747739432801,-243.44890876,0.00015828,2]
[361736976,1747739432811,-123575.82565651,0.00015829,10]
[361736977,1747739432821,-212.38718278,0.00015829,10]
[361736978,1747739432831,-7057.55086999,0.000159,2]
[361736979,1747739432844,-3386.23646182,0.000159,2]
[361736980,1747739432855,-5951.37916799,0.00016033,2]
[361736981,1747739432865,-10443.78733156,0.00016245,2]
[361736982,1747739432876,-207.4,0.0001643,2]
[361736983,1747739432886,-151.0,0.00016435,2]
[361736984,1747739432895,-151.0,0.00016435,2]
[361736985,1747739432905,-151.0,0.00016435,2]
[361736986,1747739432915,-151.0,0.00016435,2]
[361736987,1747739432924,-151.0,0.00016435,2]
[361736988,1747739432934,-151.0,0.00016435,2]
[361736989,1747739432944,-160.0,0.00016435,2]
[361736990,1747739432954,-151.0,0.00016436,2]
[361736991,1747739432963,-151.0,0.00016436,2]
[361736992,1747739432974,-500.0,0.00016437,2]
[361736993,1747739432984,-500.0,0.00016437,2]
[361736994,1747739432994,-500.0,0.00016437,2]
[361736995,1747739433004,-500.0,0.00016437,2]
[361736996,1747739433015,-500.0,0.00016437,2]
[361736997,1747739433025,-500.0,0.00016437,2]
[361736998,1747739433035,-500.0,0.00016437,2]
[361736999,1747739433045,-279.91782347,0.00016437,2]
[361737000,1747739433056,-500.0,0.00016437,2]
[361737001,1747739433066,-500.0,0.00016437,2]
[361737002,1747739433075,-500.0,0.00016437,2]
[361737003,1747739433086,-500.0,0.00016437,2]
[361737004,1747739433096,-500.0,0.00016437,2]
[361737005,1747739433106,-500.0,0.00016437,2]
[361737006,1747739433116,-500.0,0.00016437,2]
[361737007,1747739433126,-500.0,0.00016437,2]
[361737008,1747739433136,-500.0,0.00016437,2]
[361737009,1747739433146,-481.3148165,0.00016437,2]
[361737010,1747739433158,-151.0,0.00016438,2]
[361737011,1747739433168,-151.0,0.00016438,2]
[361737012,1747739433178,-151.0,0.00016438,2]
[361737013,1747739433188,-151.0,0.00016438,2]
[361737014,1747739433198,-151.0,0.00016438,2]
[361737015,1747739433207,-270.260392,0.00016438,2]
[361737016,1747739433217,-200.0,0.00016438,2]
[361737017,1747739433226,-450.0,0.00016438,2]
[361737018,1747739433237,-400.0,0.00016438,2]
[361737019,1747739433247,-430.0,0.00016438,2]
[361737020,1747739433257,-1000.0,0.00016438,2]
[361737021,1747739433266,-290.86731142,0.00016438,2]
[361737022,1747739433280,-402.83752486,0.00016438,2]
[361737023,1747739433290,-401.94796961,0.00016438,2]
[361737024,1747739433299,-450.0,0.00016438,2]
[361737025,1747739433310,-450.0,0.00016438,2]
[361737026,1747739433320,-430.0,0.00016438,2]
[361737027,1747739433330,-400.0,0.00016438,2]
[361737028,1747739433340,-400.0,0.00016438,2]
[361737029,1747739433351,-209.45132408,0.00016438,2]
[361737030,1747739433361,-400.0,0.00016438,2]
[361737031,1747739433371,-409.16087521,0.00016438,2]
[361737032,1747739433382,-400.0,0.00016438,2]
[361737033,1747739433392,-350.0,0.00016438,2]
[361737034,1747739433402,-400.0,0.00016438,2]
[361737035,1747739433412,-400.0,0.00016438,2]
[361737036,1747739433422,-400.0,0.00016438,2]
[361737037,1747739433432,-78.0858381,0.00016438,2]
[361737040,1747739437991,-300.0,0.00015726,2]
[361737041,1747739438001,-160.0,0.00015829,2]
[361737042,1747739438011,-187.02664618,0.00016438,2]
[361737043,1747739438021,-430.0,0.00016438,2]
[361737044,1747739438031,-320.41251499,0.00016438,2]
[361737046,1747739438186,-109.58748501,0.00016438,2]
[361737047,1747739438196,-408.92902728,0.00016438,2]
[361737048,1747739438206,-400.0,0.00016438,2]
[361737049,1747739438216,-500.0,0.00016438,2]
[361737050,1747739438225,-500.0,0.00016438,2]
[361737051,1747739438235,-500.0,0.00016438,2]
[361737052,1747739438245,-500.0,0.00016438,2]
[361737053,1747739438254,-165.49112616,0.00016438,2]
[361737054,1747739438263,-83.64812955,0.00016438,2]
[361737098,1747739443154,-416.35187045,0.00016438,2]
[361737099,1747739443165,-500.0,0.00016438,2]
[361737100,1747739443175,-500.0,0.00016438,2]
[361737101,1747739443185,-500.0,0.00016438,2]
[361737102,1747739443197,-430.0,0.00016438,2]
[361737103,1747739443207,-430.0,0.00016438,2]
[361737104,1747739443217,-430.0,0.00016438,2]
[361737105,1747739443227,-300.0,0.00016438,2]
[361737106,1747739443237,-350.0,0.00016438,2]
[361737108,1747739443247,-350.0,0.00016438,2]
[361737110,1747739443257,-350.0,0.00016438,2]
[361737112,1747739443268,-350.0,0.00016438,2]
[361737114,1747739443281,-430.0,0.00016438,2]
[361737115,1747739443290,-360.33279551,0.00016438,2]
[361737117,1747739443300,-358.81304738,0.00016438,2]
[361737120,1747739443310,-430.0,0.00016438,2]
[361737122,1747739443320,-430.0,0.00016438,2]
[361737124,1747739443330,-498.02610593,0.00016438,2]
[361737126,1747739443340,-430.0,0.00016438,2]
[361737128,1747739443351,-359.04222604,0.00016438,2]
[361737130,1747739443360,-355.94100041,0.00016438,2]
[361737131,1747739443370,-430.0,0.00016438,2]
[361737133,1747739443379,-430.0,0.00016438,2]
[361737135,1747739443389,-450.0,0.00016438,2]
[361737137,1747739443399,-430.0,0.00016438,2]
[361737139,1747739443410,-430.0,0.00016438,2]
[361737140,1747739443422,-350.0,0.00016438,2]
[361737141,1747739443434,-411.36628115,0.00016438,2]
[361737142,1747739443445,-350.0,0.00016438,2]
[361737143,1747739443456,-350.0,0.00016438,2]
[361737144,1747739443467,-430.0,0.00016438,2]
[361737145,1747739443477,-430.0,0.00016438,2]
[361737146,1747739443487,-350.0,0.00016438,2]
[361737147,1747739443498,-430.0,0.00016438,2]
[361737148,1747739443507,-450.0,0.00016438,2]
[361737149,1747739443516,-350.0,0.00016438,2]
[361737150,1747739443525,-430.0,0.00016438,2]
[361737151,1747739443535,-430.0,0.00016438,2]
[361737152,1747739443544,-347.75332896,0.00016438,2]
[361737153,1747739443556,-82.24667104,0.00016438,2]
[361737154,1747739443567,-400.0,0.00016438,2]
[361737155,1747739443577,-430.0,0.00016438,2]
[361737156,1747739443588,-450.0,0.00016438,2]
[361737157,1747739443599,-350.0,0.00016438,2]
[361737158,1747739443610,-304.47149506,0.00016438,2]
[361737159,1747739443621,-430.0,0.00016438,2]
[361737160,1747739443631,-430.0,0.00016438,2]
[361737161,1747739443641,-430.0,0.00016438,2]
[361737162,1747739443651,-430.0,0.00016438,2]
[361737163,1747739443662,-430.0,0.00016438,2]
[361737164,1747739443672,-400.0,0.00016438,2]
[361737165,1747739443683,-559.44355287,0.00016438,2]
[361737166,1747739443692,-400.0,0.00016438,2]
[361737167,1747739443702,-430.0,0.00016438,2]
[361737168,1747739443712,-400.0,0.00016438,2]
[361737169,1747739443723,-430.0,0.00016438,2]
[361737170,1747739443733,-430.0,0.00016438,2]
[361737171,1747739443743,-430.0,0.00016438,2]
[361737172,1747739443753,-450.0,0.00016438,2]
[361737173,1747739443763,-400.0,0.00016438,2]
[361737174,1747739443775,-400.0,0.00016438,2]
[361737175,1747739443785,-406.52925184,0.00016438,2]
[361737176,1747739443795,-400.0,0.00016438,2]
[361737177,1747739443805,-430.0,0.00016438,2]
[361737178,1747739443815,-400.0,0.00016438,2]
[361737179,1747739443825,-430.0,0.00016438,2]
[361737180,1747739443835,-151.42443319,0.00016438,2]
[361737181,1747739443845,-400.44890749,0.00016438,2]
[361737182,1747739443855,-400.0,0.00016438,2]
[361737183,1747739443866,-400.0,0.00016438,2]
[361737184,1747739443875,-405.63279346,0.00016438,2]
[361737185,1747739443885,-400.0,0.00016438,2]
[361737186,1747739443895,-450.0,0.00016438,2]
[361737187,1747739443905,-400.0,0.00016438,2]
[361737188,1747739443916,-430.0,0.00016438,2]
[361737189,1747739443926,-430.0,0.00016438,2]
[361737190,1747739443937,-430.0,0.00016438,2]
[361737191,1747739443946,-430.0,0.00016438,2]
[361737192,1747739443956,-250.0,0.00016438,2]
[361737193,1747739443966,-430.0,0.00016438,2]
[361737194,1747739443976,-430.0,0.00016438,2]
[361737195,1747739443985,-250.0,0.00016438,2]
[361737196,1747739443995,-410.9944905,0.00016438,2]
[361737197,1747739444006,-346.12578421,0.00016438,2]
[361737198,1747739444016,-430.0,0.00016438,2]
[361737199,1747739444025,-450.0,0.00016438,2]
[361737200,1747739444035,-430.0,0.00016438,2]
[361737201,1747739444046,-430.0,0.00016438,2]
[361737202,1747739444057,-400.0,0.00016438,2]
[361737203,1747739444067,-250.0,0.00016438,2]
[361737204,1747739444078,-430.0,0.00016438,2]
[361737205,1747739444088,-406.06722317,0.00016438,2]
[361737206,1747739444098,-400.0,0.00016438,2]
[361737207,1747739444108,-424.40590533,0.00016438,2]
[361737208,1747739444118,-128.07072511,0.00016438,2]
[361737209,1747739444131,-271.92927489,0.00016438,2]
[361737210,1747739444141,-400.0,0.00016438,2]
[361737211,1747739444150,-430.0,0.00016438,2]
[361737212,1747739444160,-505.5890807,0.00016438,2]
[361737213,1747739444170,-400.0,0.00016438,2]
[361737214,1747739444180,-400.0,0.00016438,2]
[361737215,1747739444189,-400.0,0.00016438,2]
[361737216,1747739444199,-250.0,0.00016438,2]
[361737217,1747739444209,-430.0,0.00016438,2]
[361737218,1747739444219,-430.0,0.00016438,2]
[361737219,1747739444230,-356.60203319,0.00016438,2]
[361737220,1747739444241,-430.0,0.00016438,2]
[361737221,1747739444251,-250.0,0.00016438,2]
[361737222,1747739444263,-430.0,0.00016438,2]
[361737223,1747739444277,-430.0,0.00016438,2]
[361737224,1747739444289,-400.0,0.00016438,2]
[361737225,1747739444299,-399.76425097,0.00016438,2]
[361737226,1747739444310,-430.0,0.00016438,2]
[361737227,1747739444320,-450.0,0.00016438,2]
[361737228,1747739444330,-400.0,0.00016438,2]
[361737229,1747739444339,-430.0,0.00016438,2]
[361737230,1747739444349,-1193.64,0.00016438,2]
[361737231,1747739444360,-400.0,0.00016438,2]
[361737232,1747739444370,-430.0,0.00016438,2]
[361737233,1747739444380,-400.0,0.00016438,2]
[361737234,1747739444390,-400.0,0.00016438,2]
[361737235,1747739444399,-430.0,0.00016438,2]
[361737236,1747739444409,-430.0,0.00016438,2]
[361737237,1747739444419,-400.0,0.00016438,2]
[361737238,1747739444428,-432.12,0.00016438,2]
[361737239,1747739444439,-787.85,0.00016438,2]
[361737240,1747739444448,-400.0,0.00016438,2]
[361737241,1747739444458,-218.23511087,0.00016438,2]
[361737242,1747739444468,-400.0,0.00016438,2]
[361737243,1747739444478,-430.0,0.00016438,2]
[361737244,1747739444488,-430.0,0.00016438,2]
[361737245,1747739444498,-430.0,0.00016438,2]
[361737246,1747739444508,-169.88174466,0.00016438,2]
[361737247,1747739444518,-911.84,0.00016438,2]
[361737248,1747739444528,-430.0,0.00016438,2]
[361737249,1747739444537,-430.0,0.00016438,2]
[361737250,1747739444547,-430.0,0.00016438,2]
[361737251,1747739444557,-450.0,0.00016438,2]
[361737252,1747739444567,-467.58026685,0.00016438,2]
[361737253,1747739444576,-450.0,0.00016438,2]
[361737254,1747739444587,-430.0,0.00016438,2]
[361737255,1747739444596,-430.0,0.00016438,2]
[361737256,1747739444606,-572.98,0.00016438,2]
[361737257,1747739444615,-430.0,0.00016438,2]
[361737258,1747739444625,-430.0,0.00016438,2]
[361737259,1747739444634,-430.0,0.00016438,2]
[361737260,1747739444644,-430.0,0.00016438,2]
[361737261,1747739444655,-430.0,0.00016438,2]
[361737262,1747739444666,-430.0,0.00016438,2]
[361737263,1747739444675,-430.0,0.00016438,2]
[361737264,1747739444687,-564.54,0.00016438,2]
[361737265,1747739444697,-450.0,0.00016438,2]
[361737266,1747739444707,-402.57855156,0.00016438,2]
[361737267,1747739444716,-495.07084781,0.00016438,2]
[361737268,1747739444727,-430.0,0.00016438,2]
[361737269,1747739444737,-417.44552591,0.00016438,2]
[361737270,1747739444747,-430.0,0.00016438,2]
[361737271,1747739444758,-430.0,0.00016438,2]
[361737272,1747739444768,-450.0,0.00016438,2]
[361737273,1747739444778,-430.0,0.00016438,2]
[361737274,1747739444788,-430.0,0.00016438,2]
[361737275,1747739444798,-430.0,0.00016438,2]
[361737276,1747739444807,-164.40955094,0.00016438,2]
[361737277,1747739444818,-430.0,0.00016438,2]
[361737278,1747739444828,-430.0,0.00016438,2]
[361737279,1747739444838,-550.4,0.00016438,2]
[361737280,1747739444849,-430.0,0.00016438,2]
[361737281,1747739444859,-1315.4,0.00016438,2]
[361737282,1747739444868,-457.65377488,0.00016438,2]
[361737283,1747739444879,-430.0,0.00016438,2]
[361737284,1747739444890,-430.0,0.00016438,2]
[361737285,1747739444900,-400.0,0.00016438,2]
[361737286,1747739444909,-430.0,0.00016438,2]
[361737287,1747739444919,-430.0,0.00016438,2]
[361737288,1747739444929,-430.0,0.00016438,2]
[361737289,1747739444940,-430.0,0.00016438,2]
[361737290,1747739444949,-430.0,0.00016438,2]
[361737291,1747739444960,-400.0,0.00016438,2]
[361737292,1747739444970,-400.0,0.00016438,2]
[361737293,1747739444980,-450.0,0.00016438,2]
[361737294,1747739444990,-430.0,0.00016438,2]
[361737295,1747739444999,-430.0,0.00016438,2]
[361737296,1747739445010,-2867.28,0.00016438,2]
[361737297,1747739445020,-300.0,0.00016438,2]
[361737298,1747739445030,-450.0,0.00016438,2]
[361737299,1747739445039,-400.0,0.00016438,2]
[361737300,1747739445050,-430.0,0.00016438,2]
[361737301,1747739445060,-450.0,0.00016438,2]
[361737302,1747739445070,-400.0,0.00016438,2]
[361737303,1747739445079,-450.0,0.00016438,2]
[361737304,1747739445089,-400.0,0.00016438,2]
[361737305,1747739445099,-430.0,0.00016438,2]
[361737306,1747739445109,-430.0,0.00016438,2]
[361737307,1747739445119,-430.0,0.00016438,2]
[361737308,1747739445129,-430.0,0.00016438,2]
[361737309,1747739445138,-430.0,0.00016438,2]
[361737310,1747739445148,-430.0,0.00016438,2]
[361737311,1747739445158,-430.0,0.00016438,2]
[361737312,1747739445168,-1096.73,0.00016438,2]
[361737313,1747739445178,-430.0,0.00016438,2]
[361737314,1747739445187,-405.22523388,0.00016438,2]
[361737315,1747739445197,-430.9,0.00016438,2]
[361737316,1747739445208,-450.0,0.00016438,2]
[361737317,1747739445218,-430.0,0.00016438,2]
[361737318,1747739445227,-400.0,0.00016438,2]
[361737319,1747739445238,-403.28649823,0.00016438,2]
[361737320,1747739445248,-430.0,0.00016438,2]
[361737321,1747739445258,-430.0,0.00016438,2]
[361737322,1747739445269,-430.0,0.00016438,2]
[361737323,1747739445283,-350.0,0.00016438,2]
[361737324,1747739445293,-430.0,0.00016438,2]
[361737325,1747739445303,-430.0,0.00016438,2]
[361737326,1747739445313,-430.0,0.00016438,2]
[361737327,1747739445323,-409.00225661,0.00016438,2]
[361737328,1747739445333,-430.0,0.00016438,2]
[361737329,1747739445343,-496.84352696,0.00016438,2]
[361737330,1747739445353,-450.0,0.00016438,2]
[361737331,1747739445363,-359.79214509,0.00016438,2]
[361737332,1747739445372,-430.0,0.00016438,2]
[361737333,1747739445382,-430.0,0.00016438,2]
[361737334,1747739445392,-430.0,0.00016438,2]
[361737335,1747739445402,-430.0,0.00016438,2]
[361737336,1747739445412,-350.0,0.00016438,2]
[361737337,1747739445421,-430.0,0.00016438,2]
[361737338,1747739445431,-3413.09,0.00016438,2]
[361737339,1747739445442,-993.99,0.00016438,2]
[361737341,1747739445452,-430.0,0.00016438,2]
[361737342,1747739445463,-732.7,0.00016438,2]
[361737344,1747739445472,-400.38262653,0.00016438,2]
[361737345,1747739445483,-1300.99,0.00016438,2]
[361737346,1747739445493,-430.0,0.00016438,2]
[361737347,1747739445503,-400.0,0.00016438,2]
[361737348,1747739445512,-450.0,0.00016438,2]
[361737349,1747739445523,-448.62,0.00016438,2]
[361737351,1747739445533,-430.0,0.00016438,2]
[361737353,1747739445543,-430.0,0.00016438,2]
[361737355,1747739445553,-430.0,0.00016438,2]
[361737356,1747739445563,-430.0,0.00016438,2]
[361737357,1747739445573,-430.0,0.00016438,2]
[361737358,1747739445583,-575.1,0.00016438,2]
[361737359,1747739445593,-430.0,0.00016438,2]
[361737360,1747739445603,-430.0,0.00016438,2]
[361737362,1747739445613,-440.80753066,0.00016438,2]
[361737364,1747739445623,-430.0,0.00016438,2]
[361737365,1747739445632,-430.0,0.00016438,2]
[361737367,1747739445642,-430.0,0.00016438,2]
[361737369,1747739445651,-430.0,0.00016438,2]
[361737371,1747739445662,-430.0,0.00016438,2]
[361737373,1747739445672,-1031.05,0.00016438,2]
[361737375,1747739445682,-1270.75,0.00016438,2]
[361737376,1747739445691,-407.44433781,0.00016438,2]
[361737378,1747739445701,-430.0,0.00016438,2]
[361737379,1747739445712,-430.0,0.00016438,2]
[361737381,1747739445722,-430.0,0.00016438,2]
[361737382,1747739445731,-400.0,0.00016438,2]
[361737383,1747739445740,-430.0,0.00016438,2]
[361737384,1747739445750,-430.0,0.00016438,2]
[361737385,1747739445759,-2694.01,0.00016438,2]
[361737386,1747739445769,-450.0,0.00016438,2]
[361737388,1747739445779,-430.0,0.00016438,2]
[361737390,1747739445788,-450.0,0.00016438,2]
[361737391,1747739445797,-1194.75,0.00016438,2]
[361737392,1747739445807,-430.0,0.00016438,2]
[361737393,1747739445818,-450.0,0.00016438,2]
[361737394,1747739445827,-165.0,0.00016438,3]
[361737396,1747739445837,-10443.78733156,0.0001659,2]
[361737398,1747739445848,-427.18,0.00016712,2]
[361737399,1747739445858,-560.23413708,0.00016712,2]
[361737400,1747739445870,-220.0,0.00016712,2]
[361737401,1747739445880,-370.0,0.00016712,2]
[361737403,1747739445890,-486.40668041,0.00016712,2]
[361737404,1747739445902,-277.98416002,0.00016712,2]
[361737405,1747739445912,-430.0,0.00016712,2]
[361737406,1747739445923,-320.0,0.00016712,2]
[361737407,1747739445932,-320.0,0.00016712,2]
[361737409,1747739445942,-320.0,0.00016712,2]
[361737411,1747739445952,-430.0,0.00016712,2]
[361737412,1747739445962,-430.0,0.00016712,2]
[361737414,1747739445972,-370.0,0.00016712,2]
[361737415,1747739445982,-370.0,0.00016712,2]
[361737417,1747739445993,-430.0,0.00016712,2]
[361737418,1747739446003,-320.0,0.00016712,2]
[361737419,1747739446013,-370.0,0.00016712,2]
[361737420,1747739446023,-370.0,0.00016712,2]
[361737421,1747739446033,-350.66145062,0.00016712,2]
[361737422,1747739446043,-370.0,0.00016712,2]
[361737423,1747739446053,-430.0,0.00016712,2]
[361737424,1747739446063,-270.0,0.00016712,2]
[361737425,1747739446073,-430.0,0.00016712,2]
[361737426,1747739446083,-370.0,0.00016712,2]
[361737427,1747739446093,-430.0,0.00016712,2]
[361737428,1747739446105,-430.0,0.00016712,2]
[361737429,1747739446115,-430.0,0.00016712,2]
[361737430,1747739446125,-430.0,0.00016712,2]
[361737431,1747739446134,-430.0,0.00016712,2]
[361737432,1747739446144,-430.0,0.00016712,2]
[361737433,1747739446154,-370.0,0.00016712,2]
[361737434,1747739446164,-273.27911492,0.00016712,2]
[361737435,1747739446174,-270.0,0.00016712,2]
[361737436,1747739446183,-430.0,0.00016712,2]